fUST/lending_fUST_20240727
["ID","MTS","AMOUNT","RATE_DAILY","PERIOD"]
[333373190,1722077459308,-1536.12,0.00013972,2]
[333373192,1722077459317,-697.618107,0.00013972,2]
[333373194,1722077459329,-500.0,0.00013972,2]
[333373196,1722077459338,-500.0,0.00013972,2]
[333373198,1722077459348,-500.0,0.00013972,2]
[333373199,1722077459358,-697.618107,0.00013972,2]
[333373200,1722077459367,-1155.41,0.00013972,2]
[333373202,1722077459377,-500.0,0.00013972,2]
[333373204,1722077459386,-500.0,0.00013972,2]
[333373206,1722077459396,-500.0,0.00013972,2]
[333373209,1722077459407,-500.0,0.00013972,2]
[333373210,1722077459416,-500.0,0.00013972,2]
[333373213,1722077459426,-500.0,0.00013972,2]
[333373214,1722077459436,-500.0,0.00013972,2]
[333373217,1722077459445,-1244.63,0.00013972,2]
[333373218,1722077459455,-500.0,0.00013972,2]
[333373220,1722077459464,-614.13,0.00013972,2]
[333373222,1722077459473,-2250.02,0.00013972,2]
[333373224,1722077459484,-1098.59,0.00013972,2]
[333373226,1722077459494,-500.0,0.00013972,2]
[333373228,1722077459503,-500.0,0.00013972,2]
[333373230,1722077459514,-151.0,0.00013972,2]
[333373232,1722077459527,-496.330433,0.00013972,2]
[333373234,1722077459537,-1593.38,0.00013972,2]
[333373236,1722077459547,-368.76987272,0.00013972,2]
[333373237,1722077459556,-151.0,0.00013972,2]
[333373238,1722077459566,-500.0,0.00013972,2]
[333373239,1722077459576,-496.330433,0.00013972,2]
[333373240,1722077459585,-500.0,0.00013972,2]
[333373241,1722077459596,-500.0,0.00013972,2]
[333373242,1722077459606,-500.0,0.00013972,2]
[333373243,1722077459615,-500.0,0.00013972,2]
[333373245,1722077459626,-500.0,0.00013972,2]
[333373247,1722077459637,-8776.9,0.00013972,2]
[333373249,1722077459647,-500.0,0.00013972,2]
[333373251,1722077459657,-500.0,0.00013972,2]
[333373253,1722077459667,-500.0,0.00013972,2]
[333373255,1722077459676,-4954.83,0.00013972,2]
[333373257,1722077459686,-500.0,0.00013972,2]
[333373259,1722077459696,-500.0,0.00013972,2]
[333373261,1722077459705,-568.76,0.00013972,2]
[333373263,1722077459716,-500.0,0.00013972,2]
[333373265,1722077459726,-500.0,0.00013972,2]
[333373267,1722077459735,-500.0,0.00013972,2]
[333373269,1722077459745,-500.0,0.00013972,2]
[333373271,1722077459754,-3710.49,0.00013972,2]
[333373273,1722077459763,-500.0,0.00013972,2]
[333373275,1722077459773,-500.0,0.00013972,2]
[333373276,1722077459782,-500.0,0.00013972,2]
[333373277,1722077459792,-1224.21,0.00013972,2]
[333373278,1722077459802,-500.0,0.00013972,2]
[333373279,1722077459811,-500.0,0.00013972,2]
[333373280,1722077459820,-500.0,0.00013972,2]
[333373281,1722077459830,-500.0,0.00013972,2]
[333373282,1722077459839,-151.573041,0.00013972,2]
[333373283,1722077459849,-500.0,0.00013972,2]
[333373284,1722077459858,-1528.703634,0.00013972,2]
[333373285,1722077459868,-532.66556078,0.00013972,2]
[333373286,1722077459877,-500.0,0.00013972,2]
[333373287,1722077459887,-1660.16,0.00013972,2]
[333373288,1722077459896,-1528.703634,0.00013972,2]
[333373289,1722077459906,-152.82767192,0.00013972,2]
[333373290,1722077459916,-500.0,0.00013972,2]
[333373291,1722077459925,-2618.31,0.00013972,2]
[333373292,1722077459936,-500.0,0.00013972,2]
[333373293,1722077459945,-828.75,0.00013972,2]
[333373294,1722077459955,-1267.968461,0.00013972,2]
[333373295,1722077459964,-500.0,0.00013972,2]
[333373296,1722077459974,-500.0,0.00013972,2]
[333373297,1722077459983,-500.0,0.00013972,2]
[333373298,1722077459993,-500.0,0.00013972,2]
[333373299,1722077460002,-1267.968461,0.00013972,2]
[333373300,1722077460012,-581.2,0.00013972,2]
[333373301,1722077460021,-500.0,0.00013972,2]
[333373302,1722077460031,-151.0,0.00013972,2]
[333373303,1722077460040,-1470.48,0.00013972,2]
[333373304,1722077460050,-500.0,0.00013972,2]
[333373305,1722077460060,-500.0,0.00013972,2]
[333373306,1722077460070,-500.0,0.00013972,2]
[333373307,1722077460079,-500.0,0.00013972,2]
[333373308,1722077460090,-151.0,0.00013972,2]
[333373309,1722077460099,-151.0,0.00013972,2]
[333373310,1722077460109,-500.0,0.00013972,2]
[333373311,1722077460118,-500.0,0.00013972,2]
[333373312,1722077460127,-485.65108768,0.00013972,2]
[333373313,1722077460137,-500.0,0.00013972,2]
[333373314,1722077460147,-500.0,0.00013972,2]
[333373315,1722077460157,-500.0,0.00013972,2]
[333373316,1722077460167,-500.0,0.00013972,2]
[333373317,1722077460177,-500.0,0.00013972,2]
[333373318,1722077460187,-1212.7,0.00013972,2]
[333373319,1722077460197,-956.49,0.00013972,2]
[333373320,1722077460206,-548.57,0.00013972,2]
[333373321,1722077460216,-500.0,0.00013972,2]
[333373322,1722077460226,-500.0,0.00013972,2]
[333373323,1722077460236,-1027.09,0.00013972,2]
[333373324,1722077460246,-632.22,0.00013972,2]
[333373325,1722077460255,-500.0,0.00013972,2]
[333373326,1722077460265,-500.0,0.00013972,2]
[333373327,1722077460275,-500.0,0.00013972,2]
[333373328,1722077460285,-500.0,0.00013972,2]
[333373329,1722077460298,-500.0,0.00013972,2]
[333373330,1722077460307,-6615.8,0.00013972,2]
[333373331,1722077460318,-500.0,0.00013972,2]
[333373332,1722077460328,-500.0,0.00013972,2]
[333373333,1722077460338,-500.0,0.00013972,2]
[333373334,1722077460348,-500.0,0.00013972,2]
[333373335,1722077460358,-501.64391402,0.00013972,2]
[333373336,1722077460369,-500.0,0.00013972,2]
[333373337,1722077460379,-500.0,0.00013972,2]
[333373338,1722077460389,-500.0,0.00013972,2]
[333373339,1722077460399,-500.0,0.00013972,2]
[333373340,1722077460409,-500.0,0.00013972,2]
[333373341,1722077460419,-601.79,0.00013972,2]
[333373342,1722077460428,-828.02,0.00013972,2]
[333373343,1722077460438,-500.0,0.00013972,2]
[333373344,1722077460449,-500.0,0.00013972,2]
[333373345,1722077460459,-162.2752773,0.00013972,2]
[333373346,1722077460470,-500.0,0.00013972,2]
[333373347,1722077460481,-500.0,0.00013972,2]
[333373348,1722077460491,-857.24,0.00013972,2]
[333373349,1722077460501,-1123.68,0.00013972,2]
[333373350,1722077460511,-500.0,0.00013972,2]
[333373351,1722077460525,-500.0,0.00013972,2]
[333373352,1722077460534,-3725.09,0.00013972,2]
[333373353,1722077460544,-500.0,0.00013972,2]
[333373354,1722077460554,-1161.13,0.00013972,2]
[333373355,1722077460564,-590.34,0.00013972,2]
[333373356,1722077460573,-500.0,0.00013972,2]
[333373357,1722077460582,-500.0,0.00013972,2]
[333373358,1722077460592,-1216.14,0.00013972,2]
[333373359,1722077460601,-2473.7,0.00013972,2]
[333373360,1722077460612,-1917.059694,0.00013972,2]
[333373361,1722077460621,-500.0,0.00013972,2]
[333373362,1722077460631,-500.0,0.00013972,2]
[333373363,1722077460640,-500.0,0.00013972,2]
[333373364,1722077460734,-1917.059694,0.00013972,2]
[333373365,1722077460786,-500.0,0.00013972,2]
[333373366,1722077460796,-500.0,0.00013972,2]
[333373367,1722077460807,-500.0,0.00013972,2]
[333373368,1722077460818,-500.0,0.00013972,2]
[333373369,1722077460828,-177.82958708,0.00013972,2]
[333373370,1722077460838,-1295.13,0.00013972,2]
[333373371,1722077460848,-831.74,0.00013972,2]
[333373372,1722077460858,-500.0,0.00013972,2]
[333373373,1722077460870,-500.0,0.00013972,2]
[333373374,1722077460880,-523.12472709,0.00013972,2]
[333373375,1722077460890,-500.0,0.00013972,2]
[333373376,1722077460899,-500.0,0.00013972,2]
[333373377,1722077460910,-500.0,0.00013972,2]
[333373378,1722077460920,-1615.11,0.00013972,2]
[333373379,1722077460930,-821.34,0.00013972,2]
[333373380,1722077460940,-500.0,0.00013972,2]
[333373381,1722077460949,-1826.32,0.00013972,2]
[333373382,1722077460959,-500.0,0.00013972,2]
[333373383,1722077460969,-500.0,0.00013972,2]
[333373384,1722077460978,-500.0,0.00013972,2]
[333373385,1722077460988,-500.0,0.00013972,2]
[333373386,1722077460998,-500.0,0.00013972,2]
[333373387,1722077461008,-1532.27,0.00013972,2]
[333373388,1722077461018,-500.0,0.00013972,2]
[333373389,1722077461028,-6243.186449,0.00013972,2]
[333373390,1722077461038,-608.38,0.00013972,2]
[333373391,1722077461047,-5176.549946,0.00013972,2]
[333373392,1722077461058,-151.0,0.00013972,2]
[333373393,1722077461068,-500.0,0.00013972,2]
[333373394,1722077461078,-500.0,0.00013972,2]
[333373395,1722077461088,-6243.186449,0.00013972,2]
[333373396,1722077461098,-871.45,0.00013972,2]
[333373397,1722077461108,-151.0,0.00013972,2]
[333373398,1722077461117,-5176.549946,0.00013972,2]
[333373399,1722077461127,-500.0,0.00013972,2]
[333373400,1722077461136,-500.0,0.00013972,2]
[333373401,1722077461146,-500.0,0.00013972,2]
[333373402,1722077461156,-708.24,0.00013972,2]
[333373403,1722077461166,-500.0,0.00013972,2]
[333373404,1722077461176,-500.0,0.00013972,2]
[333373405,1722077461185,-500.0,0.00013972,2]
[333373406,1722077461195,-1886.38,0.00013972,2]
[333373407,1722077461205,-500.0,0.00013972,2]
[333373408,1722077461216,-2733.53,0.00013972,2]
[333373409,1722077461225,-500.0,0.00013972,2]
[333373410,1722077461235,-500.0,0.00013972,2]
[333373411,1722077461244,-500.0,0.00013972,2]
[333373412,1722077461254,-151.0,0.00013972,2]
[333373413,1722077461263,-1777.07,0.00013972,2]
[333373414,1722077461273,-486.32680811,0.00013972,2]
[333373415,1722077461287,-1528.69,0.00013972,2]
[333373416,1722077461296,-151.0,0.00013972,2]
[333373417,1722077461306,-500.0,0.00013972,2]
[333373418,1722077461316,-500.0,0.00013972,2]
[333373419,1722077461325,-1795.09,0.00013972,2]
[333373420,1722077461335,-2510.580627,0.00013972,2]
[333373421,1722077461344,-537.52,0.00013972,2]
[333373422,1722077461354,-500.0,0.00013972,2]
[333373423,1722077461363,-500.0,0.00013972,2]
[333373424,1722077461373,-503.6451336,0.00013972,2]
[333373425,1722077461382,-2510.580627,0.00013972,2]
[333373426,1722077461392,-2094.06045063,0.00014,2]
[333373427,1722077461402,-7100.26,0.00014,2]
[333373428,1722077461412,-154.77453308,0.00014,2]
[333373429,1722077461422,-414574.882724,0.00014,2]
[333373430,1722077461431,-187.790804,0.00014056,2]
[333373431,1722077461441,-167.069487,0.00014056,2]
[333373432,1722077461451,-334.138976,0.00014056,2]
[333373433,1722077461460,-301.880306,0.00014056,2]
[333373434,1722077461470,-150.112233,0.000142,2]
[333373435,1722077461481,-300.0,0.000142,5]
[333373436,1722077461491,-150.0,0.000142,30]
[333373437,1722077461501,-187.790804,0.00014225,2]
[333373438,1722077461511,-167.069487,0.00014225,2]
[333373439,1722077461524,-334.138976,0.00014225,2]
[333373440,1722077461534,-301.880306,0.00014225,2]
[333373441,1722077461544,-13318.62206268,0.00014246,5]
[333373442,1722077461553,-500.0,0.00014246,2]
[333373443,1722077461564,-500.0,0.00014246,2]
[333373444,1722077461574,-500.0,0.00014246,2]
[333373445,1722077461586,-160.8196939,0.00014246,2]
[333373446,1722077461597,-461.99888554,0.00014246,2]
[333373447,1722077461606,-507.41550264,0.00014246,2]
[333373448,1722077461617,-500.0,0.00014246,2]
[333373449,1722077461627,-500.0,0.00014246,2]
[333373450,1722077461636,-500.0,0.00014246,2]
[333373451,1722077461646,-500.0,0.00014246,2]
[333373452,1722077461657,-500.0,0.00014246,2]
[333373453,1722077461667,-662.43,0.00014246,2]
[333373454,1722077461677,-500.0,0.00014246,2]
[333373455,1722077461687,-176.02174883,0.00014246,2]
[333373456,1722077461697,-500.0,0.00014246,2]
[333373457,1722077461706,-500.0,0.00014246,2]
[333373458,1722077461716,-500.0,0.00014246,2]
[333373459,1722077461726,-500.0,0.00014246,2]
[333373460,1722077461736,-500.0,0.00014246,2]
[333373461,1722077461745,-500.0,0.00014246,2]
[333373462,1722077461755,-500.0,0.00014246,2]
[333373463,1722077461764,-500.0,0.00014246,2]
[333373464,1722077461774,-500.0,0.00014246,2]
[333373465,1722077461784,-500.0,0.00014246,2]
[333373466,1722077461794,-500.0,0.00014246,2]
[333373467,1722077461803,-500.0,0.00014246,2]
[333373468,1722077461813,-629.52,0.00014246,2]
[333373469,1722077461823,-500.0,0.00014246,2]
[333373470,1722077461833,-500.0,0.00014246,2]
[333373471,1722077461842,-500.0,0.00014246,2]
[333373472,1722077461852,-500.0,0.00014246,2]
[333373473,1722077461862,-500.0,0.00014246,2]
[333373474,1722077461872,-500.0,0.00014246,2]
[333373475,1722077461883,-576.47336893,0.00014246,2]
[333373476,1722077461893,-1348.23,0.00014246,2]
[333373477,1722077461903,-500.0,0.00014246,2]
[333373478,1722077461913,-500.0,0.00014246,2]
[333373479,1722077461923,-500.0,0.00014246,2]
[333373480,1722077461932,-500.0,0.00014246,2]
[333373481,1722077461942,-500.0,0.00014246,2]
[333373482,1722077461951,-831.04,0.00014246,2]
[333373483,1722077461961,-339.54805897,0.00014246,2]
[333373484,1722077461972,-500.0,0.00014246,2]
[333373485,1722077461981,-500.0,0.00014246,2]
[333373486,1722077461991,-500.0,0.00014246,2]
[333373487,1722077462000,-508.76286767,0.00014246,2]
[333373488,1722077462010,-500.0,0.00014246,2]
[333373489,1722077462020,-502.58801939,0.00014246,2]
[333373490,1722077462031,-500.0,0.00014246,2]
[333373491,1722077462041,-500.0,0.00014246,2]
[333373492,1722077462050,-500.0,0.00014246,2]
[333373493,1722077462060,-500.0,0.00014246,2]
[333373494,1722077462070,-500.0,0.00014246,2]
[333373495,1722077462080,-500.0,0.00014246,2]
[333373496,1722077462090,-194.22174648,0.00014246,2]
[333373497,1722077462100,-500.0,0.00014246,2]
[333373498,1722077462110,-500.0,0.00014246,2]
[333373499,1722077462120,-500.0,0.00014246,2]
[333373500,1722077462130,-500.0,0.00014246,2]
[333373501,1722077462139,-1370.27,0.00014246,2]
[333373502,1722077462149,-500.0,0.00014246,2]
[333373503,1722077462159,-500.0,0.00014246,2]
[333373504,1722077462169,-780.78,0.00014246,2]
[333373505,1722077462179,-500.0,0.00014246,2]
[333373506,1722077462188,-500.0,0.00014246,2]
[333373507,1722077462198,-500.0,0.00014246,2]
[333373508,1722077462207,-500.0,0.00014246,2]
[333373509,1722077462217,-500.0,0.00014246,2]
[333373510,1722077462227,-500.0,0.00014246,2]
[333373511,1722077462236,-500.0,0.00014246,2]
[333373512,1722077462246,-517.80535825,0.00014246,2]
[333373513,1722077462255,-500.0,0.00014246,2]
[333373514,1722077462265,-500.0,0.00014246,2]
[333373515,1722077462274,-500.0,0.00014246,2]
[333373516,1722077462284,-500.0,0.00014246,2]
[333373517,1722077462293,-500.0,0.00014246,2]
[333373518,1722077462303,-500.0,0.00014246,2]
[333373519,1722077462313,-2520.522338,0.00014246,2]
[333373520,1722077462323,-500.0,0.00014246,2]
[333373521,1722077462333,-500.0,0.00014246,2]
[333373522,1722077462343,-2520.522338,0.00014246,2]
[333373523,1722077462352,-734.33,0.00014246,2]
[333373524,1722077462362,-500.0,0.00014246,2]
[333373525,1722077462372,-500.0,0.00014246,2]
[333373526,1722077462381,-769.64,0.00014246,2]
[333373527,1722077462391,-151.355207,0.00014246,2]
[333373528,1722077462400,-500.0,0.00014246,2]
[333373529,1722077462411,-500.0,0.00014246,2]
[333373530,1722077462421,-500.0,0.00014246,2]
[333373531,1722077462430,-500.0,0.00014246,2]
[333373532,1722077462440,-500.0,0.00014246,2]
[333373533,1722077462450,-500.0,0.00014246,2]
[333373534,1722077462460,-796.19,0.00014246,2]
[333373535,1722077462470,-500.0,0.00014246,2]
[333373536,1722077462480,-500.0,0.00014246,2]
[333373537,1722077462490,-960.13,0.00014246,2]
[333373538,1722077462501,-500.0,0.00014246,2]
[333373539,1722077462510,-500.0,0.00014246,2]
[333373540,1722077462525,-500.0,0.00014246,2]
[333373541,1722077462534,-559.11867643,0.00014246,2]
[333373542,1722077462544,-500.0,0.00014246,2]
[333373543,1722077462656,-500.0,0.00014246,2]
[333373544,1722077462665,-500.0,0.00014246,2]
[333373545,1722077462675,-500.0,0.00014246,2]
[333373546,1722077462684,-500.0,0.00014246,2]
[333373547,1722077462694,-500.0,0.00014246,2]
[333373548,1722077462704,-500.0,0.00014246,2]
[333373549,1722077462713,-500.0,0.00014246,2]
[333373550,1722077462723,-173.317864,0.00014246,2]
[333373551,1722077462732,-173.317864,0.00014246,2]
[333373552,1722077462741,-151.0,0.00014246,2]
[333373553,1722077462751,-500.0,0.00014246,2]
[333373554,1722077462761,-500.0,0.00014246,2]
[333373555,1722077462770,-500.0,0.00014246,2]
[333373556,1722077462780,-151.0,0.00014246,2]
[333373557,1722077462789,-500.0,0.00014246,2]
[333373558,1722077462799,-500.0,0.00014246,2]
[333373559,1722077462808,-500.0,0.00014246,2]
[333373560,1722077462818,-500.0,0.00014246,2]
[333373561,1722077462827,-500.0,0.00014246,2]
[333373562,1722077462837,-500.0,0.00014246,2]
[333373563,1722077462846,-500.0,0.00014246,2]
[333373564,1722077462856,-500.0,0.00014246,2]
[333373565,1722077462865,-151.0,0.00014246,2]
[333373566,1722077462875,-500.0,0.00014246,2]
[333373567,1722077462885,-500.0,0.00014246,2]
[333373568,1722077462894,-151.0,0.00014246,2]
[333373569,1722077462905,-500.0,0.00014246,2]
[333373570,1722077462926,-500.0,0.00014246,2]
[333373571,1722077462936,-509.71574384,0.00014246,2]
[333373572,1722077462946,-500.0,0.00014246,2]
[333373573,1722077462956,-1040.18,0.00014246,2]
[333373574,1722077462967,-500.0,0.00014246,2]
[333373575,1722077462977,-500.0,0.00014246,2]
[333373576,1722077462988,-151.0,0.00014246,2]
[333373577,1722077462998,-500.0,0.00014246,2]
[333373578,1722077463008,-500.0,0.00014246,2]
[333373579,1722077463019,-151.0,0.00014246,2]
[333373580,1722077463029,-500.0,0.00014246,2]
[333373581,1722077463039,-552.48855722,0.00014246,2]
[333373582,1722077463050,-269.379751,0.00014246,2]
[333373583,1722077463060,-500.0,0.00014246,2]
[333373584,1722077463071,-500.0,0.00014246,2]
[333373585,1722077463081,-500.0,0.00014246,2]
[333373586,1722077463091,-559.5,0.00014246,2]
[333373587,1722077463101,-500.0,0.00014246,2]
[333373588,1722077463112,-500.0,0.00014246,2]
[333373589,1722077463122,-500.0,0.00014246,2]
[333373590,1722077463133,-1224.86,0.00014246,2]
[333373591,1722077463143,-500.0,0.00014246,2]
[333373592,1722077463153,-181.64958169,0.00014246,2]
[333373593,1722077463164,-201.379792,0.00014246,2]
[333373594,1722077463175,-500.0,0.00014246,2]
[333373595,1722077463186,-151.0,0.00014246,2]
[333373596,1722077463196,-500.0,0.00014246,2]
[333373597,1722077463206,-201.379792,0.00014246,2]
[333373598,1722077463216,-500.0,0.00014246,2]
[333373599,1722077463226,-500.0,0.00014246,2]
[333373600,1722077463236,-500.0,0.00014246,2]
[333373601,1722077463247,-500.0,0.00014246,2]
[333373602,1722077463258,-500.0,0.00014246,2]
[333373603,1722077463268,-500.0,0.00014246,2]
[333373604,1722077463278,-500.0,0.00014246,2]
[333373605,1722077463288,-500.0,0.00014246,2]
[333373606,1722077463299,-500.0,0.00014246,2]
[333373607,1722077463311,-949.17,0.00014246,2]
[333373608,1722077463322,-1260.91,0.00014246,2]
[333373609,1722077463332,-500.0,0.00014246,2]
[333373610,1722077463342,-500.0,0.00014246,2]
[333373611,1722077463352,-500.0,0.00014246,2]
[333373612,1722077463362,-500.0,0.00014246,2]
[333373613,1722077463372,-500.0,0.00014246,2]
[333373614,1722077463382,-500.0,0.00014246,2]
[333373615,1722077463392,-507.86488783,0.00014246,2]
[333373616,1722077463402,-907.83,0.00014246,2]
[333373617,1722077463412,-1403.15,0.00014246,2]
[333373618,1722077463423,-500.0,0.00014246,2]
[333373619,1722077463433,-500.0,0.00014246,2]
[333373620,1722077463443,-500.0,0.00014246,2]
[333373621,1722077463453,-500.0,0.00014246,2]
[333373622,1722077463463,-500.0,0.00014246,2]
[333373623,1722077463473,-500.0,0.00014246,2]
[333373624,1722077463483,-500.0,0.00014246,2]
[333373625,1722077463492,-500.0,0.00014246,2]
[333373626,1722077463520,-500.0,0.00014246,2]
[333373627,1722077463542,-500.0,0.00014246,2]
[333373628,1722077463559,-500.0,0.00014246,2]
[333373629,1722077463577,-500.0,0.00014246,2]
[333373630,1722077463595,-728.29,0.00014246,2]
[333373631,1722077463612,-500.0,0.00014246,2]
[333373632,1722077463630,-500.0,0.00014246,2]
[333373633,1722077463646,-500.0,0.00014246,2]
[333373634,1722077463663,-728.05,0.00014246,2]
[333373635,1722077463679,-500.0,0.00014246,2]
[333373636,1722077463692,-313.36360577,0.00014246,2]
[333373637,1722077463708,-1441.95,0.00014246,2]
[333373638,1722077463724,-500.0,0.00014246,2]
[333373639,1722077463741,-500.0,0.00014246,2]
[333373640,1722077463759,-500.0,0.00014246,2]
[333373641,1722077463771,-500.0,0.00014246,2]
[333373642,1722077463784,-500.0,0.00014246,2]
[333373643,1722077463801,-500.0,0.00014246,2]
[333373644,1722077463815,-500.0,0.00014246,2]
[333373645,1722077463830,-500.0,0.00014246,2]
[333373646,1722077463847,-500.0,0.00014246,2]
[333373647,1722077463859,-500.0,0.00014246,2]
[333373648,1722077463874,-500.0,0.00014246,2]
[333373649,1722077463888,-501.90243565,0.00014246,2]
[333373650,1722077463903,-500.0,0.00014246,2]
[333373651,1722077463918,-500.0,0.00014246,2]
[333373652,1722077463934,-523.75,0.00014246,2]
[333373653,1722077463948,-500.0,0.00014246,2]
[333373654,1722077463962,-504.31659562,0.00014246,2]
[333373655,1722077463976,-500.0,0.00014246,2]
[333373656,1722077463989,-500.0,0.00014246,2]
[333373657,1722077464002,-500.0,0.00014246,2]
[333373658,1722077464015,-506.52407148,0.00014246,2]
[333373659,1722077464029,-500.0,0.00014246,2]
[333373660,1722077464043,-196.94885804,0.00014246,2]
[333373661,1722077464056,-500.0,0.00014246,2]
[333373662,1722077464076,-500.0,0.00014246,2]
[333373663,1722077464090,-500.0,0.00014246,2]
[333373664,1722077464103,-500.0,0.00014246,2]
[333373665,1722077464115,-602.99,0.00014246,2]
[333373666,1722077464128,-473.74702282,0.00014246,2]
[333373667,1722077464143,-500.0,0.00014246,2]
[333373668,1722077464156,-500.0,0.00014246,2]
[333373669,1722077464170,-500.0,0.00014246,2]
[333373670,1722077464184,-500.0,0.00014246,2]
[333373671,1722077464197,-500.0,0.00014246,2]
[333373672,1722077464212,-507.01127893,0.00014246,2]
[333373673,1722077464225,-500.0,0.00014246,2]
[333373674,1722077464238,-500.0,0.00014246,2]
[333373675,1722077464253,-500.0,0.00014246,2]
[333373676,1722077464267,-500.0,0.00014246,2]
[333373677,1722077464280,-500.0,0.00014246,2]
[333373678,1722077464293,-500.0,0.00014246,2]
[333373679,1722077464307,-500.0,0.00014246,2]
[333373680,1722077464321,-151.0,0.00014246,2]
[333373681,1722077464334,-162.069232,0.00014246,2]
[333373682,1722077464348,-151.0,0.00014246,2]
[333373683,1722077464362,-162.069232,0.00014246,2]
[333373684,1722077464374,-500.0,0.00014246,2]
[333373685,1722077464387,-4642.310416,0.00014246,2]
[333373686,1722077464400,-500.0,0.00014246,2]
[333373687,1722077464413,-4642.310416,0.00014246,2]
[333373688,1722077464427,-500.0,0.00014246,2]
[333373689,1722077464440,-500.0,0.00014246,2]
[333373690,1722077464453,-500.0,0.00014246,2]
[333373691,1722077464466,-500.0,0.00014246,2]
[333373692,1722077464481,-1536.12,0.00014246,2]
[333373693,1722077464495,-697.618107,0.00014246,2]
[333373694,1722077464508,-500.0,0.00014246,2]
[333373695,1722077464525,-500.0,0.00014246,2]
[333373696,1722077464538,-500.0,0.00014246,2]
[333373697,1722077464553,-697.618107,0.00014246,2]
[333373698,1722077464568,-1155.41,0.00014246,2]
[333373699,1722077464581,-500.0,0.00014246,2]
[333373700,1722077464595,-345.89116728,0.00014246,2]
[333373701,1722077464608,-500.0,0.00014246,2]
[333373702,1722077464622,-500.0,0.00014246,2]
[333373703,1722077464636,-500.0,0.00014246,2]
[333373704,1722077464646,-500.0,0.00014246,2]
[333373705,1722077464657,-500.0,0.00014246,2]
[333373706,1722077464667,-1244.63,0.00014246,2]
[333373707,1722077464677,-563.50396674,0.00014246,2]
[333373708,1722077464844,-614.13,0.00014246,2]
[333373709,1722077464862,-2250.02,0.00014246,2]
[333373710,1722077464873,-1098.59,0.00014246,2]
[333373711,1722077464883,-500.0,0.00014246,2]
[333373712,1722077464893,-500.0,0.00014246,2]
[333373713,1722077464903,-151.0,0.00014246,2]
[333373714,1722077464912,-496.330433,0.00014246,2]
[333373715,1722077464921,-1593.38,0.00014246,2]
[333373716,1722077464930,-151.0,0.00014246,2]
[333373717,1722077464940,-500.0,0.00014246,2]
[333373718,1722077464953,-496.330433,0.00014246,2]
[333373719,1722077464963,-170.3200768,0.00014246,2]
[333373720,1722077464973,-500.0,0.00014246,2]
[333373721,1722077464982,-500.0,0.00014246,2]
[333373722,1722077464991,-500.0,0.00014246,2]
[333373723,1722077465000,-500.0,0.00014246,2]
[333373724,1722077465009,-500.0,0.00014246,2]
[333373725,1722077465018,-8776.9,0.00014246,2]
[333373726,1722077465028,-500.0,0.00014246,2]
[333373727,1722077465038,-500.0,0.00014246,2]